bitfinex-derivatives/quotes_BTCF0:USTF0_20250416
["timestamp","ask_amount","ask_price","bid_price","bid_amount"]
[1744831196821,0.2084928,84037.0,84036.0,0.2097742]
[1744831197033,0.2979928,84037.0,84036.0,0.2087742]
[1744831197221,0.2979928,84037.0,84036.0,0.2097742]
[1744831197720,0.2929928,84037.0,84036.0,0.2087742]
[1744831198111,0.6517928,84037.0,84036.0,0.08978]
[1744831198316,0.1190013,84031.0,84028.0,0.0001458]
[1744831198525,0.1190168,84020.0,84019.0,0.2020183]
[1744831198816,0.4798168,84020.0,84019.0,0.2020183]
[1744831199020,0.1190197,84018.0,84017.0,0.00511798]
[1744831199820,0.2052197,84018.0,84017.0,0.00511798]
[1744831200013,0.2052197,84018.0,84017.0,0.00519798]
[1744831200423,0.0595168,84009.0,84001.0,0.18103261]
[1744831200625,0.4798409,84003.0,84002.0,0.3082599]
[1744831200926,0.3608,84003.0,84002.0,0.2982599]
[1744831201226,0.3608,84003.0,84002.0,0.2983399]
[1744831201422,0.3608,84003.0,84002.0,0.2993399]
[1744831202113,0.4798409,84003.0,84002.0,0.2993399]
[1744831203116,0.4808409,84003.0,84002.0,0.3023399]
[1744831203517,0.3618,84003.0,84002.0,0.3023399]
[1744831205329,0.3618,84003.0,84002.0,0.2126399]
[1744831205518,0.3608,84003.0,84002.0,0.1806399]
[1744831205726,0.3608,84003.0,84002.0,0.1786399]
[1744831206023,0.3608,84003.0,84002.0,0.1806399]
[1744831206226,0.446,84003.0,84002.0,0.1806399]
[1744831206824,0.3608,84003.0,84002.0,0.1806399]
[1744831209828,0.4798409,84003.0,84002.0,0.1806399]
[1744831210220,0.3608,84003.0,84002.0,0.1806399]
[1744831210620,0.3608,84003.0,84002.0,0.1906399]
[1744831211832,0.4798409,84003.0,84002.0,0.1906399]
[1744831212045,0.7216,84003.0,83998.0,0.0001458]
[1744831212337,0.1190565,83992.0,83986.0,0.1460325]
[1744831212633,0.4798565,83992.0,83991.0,0.12417747]
[1744831214227,0.0595292,83991.0,83969.0,0.0595445]
[1744831214428,0.1190679,83984.0,83983.0,0.119069]
[1744831214639,0.1190764,83979.0,83978.0,0.059538]
[1744831214839,0.1190764,83979.0,83978.0,0.141838]
[1744831215035,0.2869764,83979.0,83975.0,0.05954]
[1744831215230,0.1190792,83976.0,83975.0,0.1786182]
[1744831215635,0.2848792,83976.0,83975.0,0.1786182]
[1744831216537,0.2858792,83976.0,83975.0,0.1806182]
[1744831217035,0.2858792,83976.0,83975.0,0.06154]
[1744831217337,0.2858792,83976.0,83975.0,0.002]
[1744831217635,0.2858792,83976.0,83975.0,0.00208]
[1744831218035,0.001,83976.0,83975.0,0.1210806]
[1744831218239,0.001,83976.0,83975.0,0.1231606]
[1744831218629,0.2946792,83976.0,83975.0,0.1211606]
[1744831219033,0.2946792,83976.0,83975.0,0.1201606]
[1744831220128,0.2946792,83976.0,83975.0,0.00108]
[1744831220332,0.0595444,83970.0,83967.0,0.000108]
[1744831220632,0.4798906,83968.0,83967.0,0.179172]
[1744831221031,0.6376906,83968.0,83967.0,0.179172]
[1744831221335,0.6376906,83968.0,83967.0,0.119172]
[1744831221532,0.6376906,83968.0,83967.0,8e-05]
[1744831221933,0.6982364,83968.0,83967.0,0.124092]
[1744831222232,0.6982364,83968.0,83967.0,0.124172]
[1744831222440,0.6982364,83968.0,83967.0,0.00508]
[1744831222644,0.6982364,83968.0,83967.0,0.00308]
[1744831222840,0.6982364,83968.0,83967.0,0.00508]
[1744831223043,0.5791458,83968.0,83967.0,0.005]
[1744831223341,0.5791458,83968.0,83967.0,0.00508]
[1744831223842,0.5791458,83968.0,83967.0,0.124172]
[1744831224242,0.6386906,83968.0,83967.0,0.124172]
[1744831225239,0.3618,83968.0,83967.0,0.124172]
[1744831225439,0.3608,83977.0,83976.0,0.1190792]
[1744831226243,0.3608,83977.0,83976.0,0.1911792]
[1744831227339,0.3608,83977.0,83976.0,0.2631792]
[1744831227643,0.3608,83977.0,83976.0,0.2641792]
[1744831228038,0.3608,83977.0,83976.0,0.2941792]
[1744831228338,0.3608,83977.0,83976.0,0.2951792]
[1744831230032,0.4798778,83977.0,83976.0,0.1930792]
[1744831230443,0.5496778,83977.0,83976.0,0.1931592]
[1744831230741,0.4306,83977.0,83976.0,0.1931592]
[1744831231040,0.5496778,83977.0,83976.0,0.2648592]
[1744831234647,0.4306,83977.0,83976.0,0.2648592]
[1744831235236,0.3608,83977.0,83976.0,0.2648592]
[1744831239346,0.4798778,83977.0,83976.0,0.2648592]
[1744831240244,0.1190778,83977.0,83976.0,0.2648592]
[1744831241949,0.0687,83982.0,83976.0,0.2053189]
[1744831242249,0.1877734,83982.0,83981.0,0.1190721]
[1744831243051,0.1877734,83982.0,83981.0,0.2577721]
[1744831244141,0.2626734,83982.0,83981.0,0.2577721]
[1744831247155,0.1210734,83982.0,83981.0,0.2577721]
[1744831247350,0.0595332,83985.0,83981.0,0.2577721]
[1744831247351,0.3608,84005.0,83991.0,0.1190579]
[1744831247652,0.09964,84002.0,83991.0,0.5498579]
[1744831247849,0.09964,84002.0,84001.0,0.1190438]
[1744831248040,0.0595198,84004.0,84001.0,0.178565]
[1744831248241,0.60036164,84016.0,84009.0,0.1190324]
[1744831248445,0.23956164,84016.0,84009.0,0.1190324]
[1744831248746,0.1190244,84015.0,84009.0,0.5398324]
[1744831248951,0.059512,84015.0,84009.0,0.5398324]
[1744831249155,0.1190286,84012.0,84009.0,0.6777324]
[1744831249848,0.1190297,84011.0,84009.0,0.6777324]
[1744831250044,0.32864744,84010.0,84009.0,0.6777324]
[1744831250641,0.33164744,84010.0,84009.0,0.6777324]
[1744831250846,0.21261644,84010.0,84009.0,0.6777324]
[1744831251047,0.21761644,84010.0,84009.0,0.6787324]
[1744831251455,0.008,84010.0,84009.0,0.6787324]
[1744831258861,0.00017864,84018.0,84017.0,0.1190211]
[1744831259059,0.0594951,84039.0,84038.0,0.1189899]
[1744831259263,0.1284951,84039.0,84038.0,0.1189899]
[1744831259566,0.1189928,84037.0,84036.0,0.0594964]
[1744831259956,0.1189984,84033.0,84032.0,0.0594996]
[1744831260255,0.0595012,84031.0,84028.0,0.00017853]
[1744831260450,0.1190168,84020.0,84019.0,0.0001458]
[1744831260652,0.4798168,84020.0,84019.0,0.1191641]
[1744831260851,0.6159168,84020.0,84019.0,0.1191641]
[1744831261452,0.6159168,84020.0,84019.0,0.1190183]
[1744831261656,0.6159168,84020.0,84019.0,0.1190983]
[1744831261853,0.1361,84020.0,84019.0,0.1190983]
[1744831262048,0.1190003,84032.0,84027.0,0.1190069]
[1744831262355,0.068,84030.0,84027.0,0.1190069]
[1744831262557,0.003,84037.0,84036.0,0.1189942]
[1744831262770,0.1189836,84044.0,84043.0,0.1189829]
[1744831263359,0.2589836,84044.0,84043.0,0.1189829]
[1744831263951,0.2589836,84044.0,84043.0,0.1902829]
[1744831264164,0.2659836,84044.0,84043.0,0.1912829]
[1744831264456,0.2659836,84044.0,84043.0,0.1200629]
[1744831264657,0.2699836,84044.0,84043.0,0.1200629]
[1744831265456,0.2699836,84044.0,84043.0,0.00108]
[1744831265851,0.2699836,84044.0,84043.0,0.001]
[1744831266059,0.1189942,84036.0,84035.0,0.00017853]
[1744831266361,0.46012,84036.0,84004.0,0.0595197]
[1744831266659,0.0595112,84016.0,84014.0,0.1190239]
[1744831266853,0.2000123,84015.0,84014.0,0.1190239]
[1744831267258,0.2000123,84015.0,84014.0,0.1191039]
[1744831267859,0.2000123,84015.0,84014.0,0.1211039]
[1744831268161,0.1405,84015.0,84014.0,0.1211039]
[1744831268357,0.1405,84015.0,84014.0,0.2599039]
[1744831268554,0.11919163,84023.0,84022.0,0.119014]
[1744831268958,0.00017853,84023.0,84022.0,0.119014]
[1744831269460,0.11919113,84023.0,84022.0,0.119014]
[1744831270261,0.12019113,84023.0,84022.0,0.119014]
[1744831270453,0.19239113,84023.0,84022.0,0.119014]
[1744831270858,0.19039113,84023.0,84022.0,0.119014]
[1744831271056,0.19439113,84023.0,84022.0,0.120014]
[1744831271453,0.19039113,84023.0,84022.0,0.119014]
[1744831271655,0.07437853,84023.0,84022.0,0.119014]
[1744831271855,0.00417853,84023.0,84022.0,0.190114]
[1744831272257,0.00317853,84023.0,84022.0,0.250114]
[1744831272461,0.00517853,84023.0,84022.0,0.250114]
[1744831273065,0.00217853,84023.0,84022.0,0.250114]
[1744831273268,0.00317853,84023.0,84022.0,0.250114]
[1744831273776,0.00217853,84023.0,84022.0,0.250114]
[1744831274470,0.00117853,84023.0,84022.0,0.250114]
[1744831274671,0.12019113,84023.0,84022.0,0.250194]
[1744831276167,0.00117853,84023.0,84022.0,0.250194]
[1744831276559,0.07267853,84023.0,84022.0,0.250194]
[1744831276765,0.00117853,84023.0,84022.0,0.250194]
[1744831278272,0.1285963,84038.0,84022.0,0.250194]
[1744831278273,0.10432,84046.0,84045.0,0.1189814]
[1744831278466,0.24492,84046.0,84045.0,0.10781868]
[1744831278969,0.26458,84046.0,84045.0,0.10781868]
[1744831279167,0.26458,84046.0,84045.0,0.17681868]
[1744831279564,0.26958,84046.0,84045.0,0.17681868]
[1744831279765,0.27758,84046.0,84045.0,0.17781868]
[1744831284064,0.1189914,84038.0,84037.0,0.00017853]
[1744831284272,0.4797914,84038.0,84037.0,0.00017853]
[1744831284571,0.4797914,84038.0,84037.0,0.11917133]
[1744831284875,0.3608,84038.0,84037.0,0.11917133]
[1744831285379,0.5519914,84038.0,84037.0,0.11917133]
[1744831285567,0.5579914,84038.0,84037.0,0.18675133]
[1744831286375,0.1971914,84038.0,84037.0,0.18675133]
[1744831287672,0.009,84038.0,84037.0,0.18675133]
[1744831287880,0.009,84038.0,84037.0,0.29305133]
[1744831289580,0.1279914,84038.0,84037.0,0.29305133]
[1744831289976,0.1279914,84038.0,84037.0,0.00125853]
[1744831290175,0.1279914,84038.0,84037.0,0.12025133]
[1744831290375,0.1279914,84038.0,84037.0,0.1090879]
[1744831290575,0.2004914,84038.0,84037.0,0.1090879]
[1744831290872,0.2004914,84038.0,84037.0,8e-05]
[1744831291379,0.1189956,84035.0,84034.0,0.1189966]
[1744831292579,0.1219956,84035.0,84034.0,0.1189966]
[1744831292778,0.1269956,84035.0,84034.0,0.1199966]
[1744831294573,0.1269956,84035.0,84034.0,0.2576966]
[1744831294779,0.008,84035.0,84034.0,0.3076966]
[1744831298076,0.10404,84046.0,84045.0,0.1189814]
[1744831298271,0.22302,84046.0,84045.0,0.1289814]
[1744831298480,0.005,84046.0,84045.0,0.1289814]
[1744831298780,0.005,84046.0,84045.0,0.2693814]
[1744831299384,0.013,84046.0,84045.0,0.2703814]
[1744831300385,0.13598,84046.0,84045.0,0.2703814]
[1744831300570,0.017,84046.0,84045.0,0.2703814]
[1744831300970,0.013,84046.0,84045.0,0.2703814]
[1744831301175,0.008,84046.0,84045.0,0.2693814]
[1744831301376,0.012,84046.0,84045.0,0.2693814]
[1744831303687,0.00017853,84054.0,84053.0,0.1189701]
[1744831303885,0.23956164,84070.0,84062.0,0.1189574]
[1744831304077,0.32857244,84063.0,84062.0,0.1189574]
[1744831304280,0.20961644,84063.0,84062.0,0.1189574]
[1744831304484,0.1418,84064.0,84063.0,0.118956]
[1744831304783,0.1418,84064.0,84063.0,0.189056]
[1744831305480,0.0707,84064.0,84063.0,0.189056]
[1744831305680,0.1896546,84064.0,84063.0,0.189056]
[1744831305882,0.2707546,84064.0,84063.0,0.190056]
[1744831307185,0.1558,84064.0,84063.0,0.190056]
[1744831307589,0.014,84064.0,84063.0,0.590856]
[1744831308480,0.085,84064.0,84063.0,0.590856]
[1744831308883,0.2039546,84064.0,84063.0,0.230056]
[1744831309081,0.2039546,84064.0,84063.0,0.041]
[1744831309279,0.2039546,84064.0,84063.0,0.119956]
[1744831309691,0.2039546,84064.0,84063.0,0.120036]
[1744831311891,0.085,84064.0,84063.0,0.120036]
[1744831312291,0.014,84064.0,84063.0,0.480836]
[1744831312487,0.014,84064.0,84063.0,0.120036]
[1744831312994,0.014,84064.0,84063.0,0.186636]
[1744831314589,0.014,84064.0,84063.0,0.196636]
[1744831314996,0.1329546,84064.0,84063.0,0.130036]
[1744831316294,0.014,84064.0,84063.0,0.130036]
[1744831317497,0.1488,84064.0,84063.0,0.130036]
[1744831317690,0.2677546,84064.0,84063.0,0.130036]
[1744831319797,0.2677546,84064.0,84063.0,0.00108]
[1744831319997,0.2677546,84064.0,84063.0,0.120036]
[1744831320190,0.2677546,84064.0,84063.0,0.00108]
[1744831320390,0.2677546,84064.0,84063.0,0.120036]
[1744831320585,0.2677546,84064.0,84063.0,0.119956]
[1744831320793,0.2677546,84064.0,84063.0,0.120036]
[1744831321088,0.2677546,84064.0,84063.0,0.119956]
[1744831321291,0.2677546,84064.0,84063.0,0.120036]
[1744831322199,0.3988,84064.0,84055.0,0.00017853]
[1744831322407,0.11898,84046.0,84045.0,0.0001458]
[1744831322593,0.11898,84046.0,84038.0,0.0677]
[1744831322594,0.1189899,84040.0,84039.0,0.1784825]
[1744831322795,0.1189914,84038.0,84037.0,0.059496]
[1744831322997,0.4797914,84038.0,84037.0,0.069496]
[1744831323197,0.4202959,84038.0,84031.0,0.0595004]
[1744831323501,0.1189999,84032.0,84031.0,0.0595004]
[1744831324401,0.2603999,84032.0,84031.0,0.0595004]
[1744831324799,0.2603999,84032.0,84031.0,0.0595804]
[1744831325403,0.2613999,84032.0,84031.0,0.0595804]
[1744831325793,0.2613999,84032.0,84031.0,0.0695804]
[1744831326201,0.2633999,84032.0,84031.0,0.0695804]
[1744831327608,0.003,84032.0,84031.0,0.0695804]
[1744831327806,0.002,84032.0,84031.0,0.1396804]
[1744831328007,0.003,84032.0,84031.0,0.1396804]
[1744831328906,0.002,84032.0,84031.0,0.1396804]
[1744831329295,0.0716,84036.0,84035.0,0.1189956]
[1744831329899,0.1905942,84036.0,84035.0,0.1189956]
[1744831330108,0.1905942,84036.0,84035.0,0.1860956]
[1744831330609,0.1925942,84036.0,84035.0,0.1860956]
[1744831330806,0.0736,84036.0,84035.0,0.1860956]
[1744831331003,0.002,84036.0,84035.0,0.2660956]
[1744831331309,0.003,84036.0,84035.0,0.2660956]
[1744831333910,0.00017853,84043.0,84042.0,0.1189857]
[1744831334104,0.8373,84062.0,84059.0,0.1189616]
[1744831334105,0.2177215,84060.0,84059.0,0.1189616]
[1744831334297,0.2177215,84060.0,84059.0,0.1895616]
[1744831334501,0.1189673,84056.0,84054.0,0.059484]
[1744831334700,0.0594881,84051.0,84050.0,0.1189687]
[1744831335411,0.0594881,84051.0,84050.0,0.1784541]
[1744831335802,0.6203674,84055.0,84054.0,0.1189687]
[1744831336403,0.1189843,84043.0,84042.0,0.00017853]
[1744831336606,0.4807843,84043.0,84042.0,0.00017853]
[1744831336802,0.4807843,84043.0,84042.0,0.11916423]
[1744831337216,0.4797843,84043.0,84042.0,0.00025853]
[1744831337407,0.1785011,84033.0,84030.0,0.0595012]
[1744831337609,0.1190098,84025.0,84024.0,0.0704]
[1744831337803,0.1190098,84025.0,84019.0,0.070408]
[1744831337804,0.1190168,84020.0,84019.0,0.070408]
[1744831338109,0.1190197,84018.0,84012.0,0.0595134]
[1744831338309,0.4798197,84018.0,84015.0,0.0595116]
[1744831338806,0.4798197,84018.0,84017.0,0.00519798]
[1744831339814,0.4818197,84018.0,84017.0,0.12421908]
[1744831340411,0.4828197,84018.0,84017.0,0.12421908]
[1744831341499,0.4828197,84018.0,84017.0,0.00519798]
[1744831341914,0.4828197,84018.0,84017.0,0.00511798]
[1744831342814,0.4828197,84018.0,84017.0,0.00519798]
[1744831343013,0.4828197,84018.0,84017.0,0.12421908]
[1744831343311,0.003,84018.0,84017.0,0.52501908]
[1744831343817,0.3608,84034.0,84025.0,0.1190098]
[1744831344012,0.0698,84035.0,84025.0,0.4798098]
[1744831344213,0.3608,84039.0,84025.0,0.4798098]
[1744831344214,0.1189985,84033.0,84025.0,0.5298098]
[1744831344511,0.24562468,84050.0,84025.0,0.6670098]
[1744831344716,0.24562468,84060.0,84045.0,0.0594905]
[1744831344906,0.1189741,84051.0,84050.0,0.1189744]
[1744831346406,0.0698,84055.0,84054.0,0.1189687]
[1744831346611,0.1189673,84055.0,84054.0,0.1189687]
[1744831346812,0.1189673,84055.0,84054.0,0.1009687]
[1744831347403,0.0594823,84057.0,84053.0,0.0665]
[1744831347608,0.0594823,84057.0,84028.0,0.0595021]
[1744831347609,0.0594881,84049.0,84028.0,0.0595021]
[1744831347809,0.1189843,84043.0,84032.0,0.0594998]
[1744831348011,0.1189843,84043.0,84037.0,0.1189921]
[1744831348208,0.1189843,84043.0,84042.0,0.00025853]
[1744831350113,0.1189984,84033.0,84032.0,0.000108]
[1744831350417,0.5392982,84033.0,84032.0,0.1189999]
[1744831350616,0.1190027,84031.0,84030.0,0.1190019]
[1744831350918,0.1190027,84031.0,84030.0,0.1902019]
[1744831351421,0.1190027,84031.0,84030.0,0.2600019]
[1744831351621,0.4797987,84033.0,84032.0,0.1189999]
[1744831351921,0.1189987,84033.0,84032.0,0.1189999]
[1744831352407,0.11916933,84039.0,84031.0,0.0595006]
[1744831352612,0.11916863,84039.0,84038.0,0.1189914]
[1744831352824,0.00017853,84039.0,84038.0,0.1189914]
[1744831353119,0.00017853,84039.0,84038.0,0.5097914]
[1744831353313,0.1189715,84052.0,84051.0,0.118973]
[1744831353523,0.1189744,84050.0,84049.0,0.0594872]
[1744831353916,0.1189744,84050.0,84049.0,8e-05]
[1744831354414,0.1189772,84048.0,84047.0,0.178467]
[1744831354619,0.1189857,84042.0,84041.0,0.05967193]
[1744831354819,0.4797857,84042.0,84041.0,0.05967193]
[1744831355224,0.4797857,84042.0,84041.0,0.05975193]
[1744831355522,0.4797857,84042.0,84041.0,0.00025853]
[1744831356013,0.4797857,84042.0,84041.0,0.00017853]
[1744831356213,0.5449857,84042.0,84041.0,0.00025853]
[1744831356419,0.5459857,84042.0,84041.0,0.00025853]
[1744831356921,0.5449857,84042.0,84041.0,0.00025853]
[1744831357126,0.5469857,84042.0,84041.0,0.00025853]
[1744831357518,0.6137857,84042.0,84041.0,0.00025853]
[1744831357723,0.6137857,84042.0,84041.0,0.11924563]
[1744831357927,0.134,84042.0,84041.0,0.11924563]
[1744831358122,0.1877857,84042.0,84041.0,0.11924563]
[1744831358322,0.1209857,84042.0,84041.0,0.11924563]
[1744831359027,0.1189857,84042.0,84041.0,0.11924563]
[1744831359215,0.2553857,84042.0,84041.0,0.11924563]
[1744831359416,0.1885857,84042.0,84041.0,0.11924563]
[1744831359618,0.1865857,84042.0,84041.0,0.11924563]
[1744831359823,0.1865857,84042.0,84041.0,0.12124563]
[1744831360128,0.0594878,84050.0,84048.0,0.1189758]
[1744831360425,0.3608,84051.0,84050.0,0.1189744]
[1744831360622,0.479773,84051.0,84050.0,0.1189744]
[1744831361720,0.615173,84051.0,84050.0,0.1190544]
[1744831362516,0.615173,84051.0,84050.0,8e-05]
[1744831362915,0.1189857,84042.0,84041.0,0.00017853]
[1744831363116,0.4797857,84042.0,84041.0,0.00017853]
[1744831363322,0.4797857,84042.0,84041.0,0.11916563]
[1744831363625,0.1354,84043.0,84042.0,0.1189857]
[1744831364326,0.0692,84043.0,84042.0,0.1884857]
[1744831364523,0.0594899,84047.0,84042.0,0.2479779]
[1744831364730,0.5187669,84051.0,84050.0,0.1189744]
[1744831365028,0.3608,84051.0,84050.0,0.1189744]
[1744831365913,0.1189744,84050.0,84042.0,0.0614927]
[1744831366119,0.1189843,84044.0,84043.0,0.1784669]
[1744831366333,0.1189843,84044.0,84043.0,0.2379572]
[1744831366630,0.1189843,84044.0,84043.0,0.2975277]
[1744831367327,0.1889843,84044.0,84043.0,0.2975277]
[1744831367523,0.1889843,84044.0,84043.0,0.2457508]
[1744831368334,0.1889843,84044.0,84043.0,0.06728]
[1744831368726,0.1889843,84044.0,84043.0,0.1862643]
[1744831369527,0.1889843,84044.0,84043.0,0.1861843]
[1744831369832,0.1889843,84044.0,84043.0,0.1872643]
[1744831370228,0.1889843,84044.0,84043.0,0.1862643]
[1744831371734,0.1889843,84044.0,84043.0,0.1872643]
[1744831372136,0.1889843,84044.0,84043.0,0.2554643]
[1744831373032,0.1889843,84044.0,84043.0,0.06728]
[1744831373232,0.5497843,84044.0,84043.0,0.1872643]
[1744831373441,0.5497843,84044.0,84043.0,0.00108]
[1744831373628,0.5497843,84044.0,84043.0,8e-05]
[1744831373828,0.5497843,84044.0,84043.0,0.1190643]
[1744831374028,0.6170843,84044.0,84043.0,0.1190643]
[1744831374322,0.6170843,84044.0,84043.0,8e-05]
[1744831374538,0.1189857,84042.0,84041.0,0.00017853]
[1744831375736,0.1209857,84042.0,84041.0,0.00017853]
[1744831376239,0.1189857,84042.0,84041.0,0.00017853]
[1744831376430,0.1199857,84042.0,84041.0,0.00017853]
[1744831378131,0.1189857,84042.0,84041.0,0.00017853]
[1744831379934,0.1199857,84042.0,84041.0,0.00017853]
[1744831380240,0.1199857,84042.0,84041.0,0.11916563]
[1744831381834,0.1189857,84042.0,84041.0,0.11916563]
[1744831382036,0.1199857,84042.0,84041.0,0.11916563]
[1744831382535,0.2526857,84042.0,84041.0,0.11916563]
[1744831382741,0.2526857,84042.0,84041.0,0.00017853]
[1744831383131,0.2526857,84042.0,84041.0,0.00010868]
[1744831383732,0.2526857,84042.0,84041.0,0.06450868]
[1744831383933,0.0669,84042.0,84041.0,0.18349578]
[1744831384139,0.001,84042.0,84041.0,0.20349578]
[1744831384336,0.001,84042.0,84041.0,0.18349578]
[1744831385043,0.001,84042.0,84041.0,0.19349578]
[1744831385242,0.1199857,84042.0,84041.0,0.19349578]
[1744831385444,0.2379626,84050.0,84049.0,0.1189744]
[1744831385740,0.0982,84060.0,84057.0,0.1189645]
[1744831385939,0.2171607,84060.0,84057.0,0.1189645]
[1744831386132,0.11914153,84058.0,84057.0,0.1189645]
[1744831386331,0.11914153,84058.0,84057.0,0.1880645]
[1744831387540,0.00017853,84058.0,84057.0,0.1880645]
[1744831387744,0.00117853,84058.0,84057.0,0.1980645]
[1744831388646,0.00117853,84058.0,84057.0,0.2657645]
[1744831389653,0.459,84076.0,84071.0,0.1189447]
[1744831389953,0.0594704,84074.0,84071.0,0.1189447]
[1744831390650,0.1239432,84072.0,84071.0,0.1189447]
[1744831390945,0.1289432,84072.0,84071.0,0.1189447]
[1744831391147,0.1289432,84072.0,84071.0,0.2611447]
[1744831391843,0.01,84072.0,84071.0,0.2611447]
[1744831393255,0.1289432,84072.0,84071.0,0.2611447]
[1744831393750,0.01,84072.0,84071.0,0.2611447]
[1744831395145,0.1289432,84072.0,84071.0,0.2611447]
[1744831395453,0.1289432,84072.0,84071.0,0.2612247]
[1744831397645,0.01,84072.0,84071.0,0.2612247]
[1744831399155,0.1289432,84072.0,84071.0,0.2612247]
[1744831399341,0.01,84072.0,84071.0,0.2612247]
[1744831400960,0.008,84072.0,84071.0,0.2612247]
[1744831401559,0.1269432,84072.0,84071.0,0.2612247]
[1744831401749,0.008,84072.0,84071.0,0.2612247]
[1744831403061,0.1269432,84072.0,84071.0,0.2612247]
[1744831403356,0.4877432,84072.0,84071.0,0.2612247]
[1744831403558,0.1269432,84072.0,84071.0,0.2612247]
[1744831404053,0.1269432,84072.0,84071.0,0.2611447]
[1744831404254,0.008,84072.0,84071.0,0.2612247]
[1744831404451,0.1269432,84072.0,84071.0,0.2612247]
[1744831405454,0.4877432,84072.0,84071.0,8e-05]
[1744831405660,0.1189503,84067.0,84066.0,0.000108]
[1744831405850,0.1189503,84067.0,84063.0,0.00032422]
[1744831405851,0.1189546,84064.0,84063.0,0.00017842]
[1744831406563,0.1349,84066.0,84063.0,0.00017842]
[1744831406761,0.066,84066.0,84065.0,0.1189531]
[1744831406951,0.1849517,84066.0,84065.0,0.1189531]
[1744831407353,0.1849517,84066.0,84065.0,0.1834531]
[1744831407552,0.1849517,84066.0,84065.0,0.0645]
[1744831407752,0.1189546,84064.0,84063.0,0.00017842]
[1744831408061,0.1189546,84064.0,84063.0,0.11921442]
[1744831408659,0.1838546,84064.0,84063.0,0.11921442]
[1744831409058,0.1838546,84064.0,84063.0,0.00025842]
[1744831409958,0.1848546,84064.0,84063.0,0.00017842]
[1744831410158,0.1848546,84064.0,84063.0,0.00025842]
[1744831410650,0.1848546,84064.0,84063.0,0.11921442]
[1744831412049,0.1848546,84064.0,84063.0,0.00025842]
[1744831412458,0.1848546,84064.0,84063.0,0.00017842]
[1744831412660,0.1848546,84064.0,84063.0,0.11921442]
[1744831413851,0.1848546,84064.0,84063.0,0.18881442]
[1744831416561,0.1848546,84064.0,84063.0,0.00025842]
[1744831416760,0.1848546,84064.0,84063.0,0.11921442]
[1744831416956,0.1848546,84064.0,84063.0,0.00017842]
[1744831417258,0.1848546,84064.0,84063.0,0.11921442]
[1744831417660,0.1848546,84064.0,84063.0,0.00025842]
[1744831417860,0.118963,84058.0,84057.0,0.1765609]
[1744831418060,0.479763,84058.0,84057.0,0.1189634]
[1744831418664,0.0594843,84054.0,84044.0,0.00079716]
[1744831418866,0.1189843,84043.0,84042.0,0.1189855]
[1744831419059,0.1189843,84043.0,84042.0,0.11916392]
[1744831420766,0.4797843,84043.0,84042.0,0.11916392]
[1744831420965,0.4797843,84043.0,84042.0,0.12016392]
[1744831422667,0.4797843,84043.0,84042.0,0.00117842]
[1744831422869,0.4797843,84043.0,84041.0,0.0642]
[1744831422870,0.1189942,84036.0,84035.0,0.000108]
[1744831423067,0.4797942,84036.0,84035.0,0.000108]
[1744831423263,0.1190041,84029.0,84028.0,0.0001458]
[1744831423465,0.1190197,84018.0,84017.0,0.00511798]
[1744831423661,0.4798197,84018.0,84017.0,0.00522598]
[1744831423873,0.4798197,84018.0,84017.0,0.12424708]
[1744831424074,0.1862183,84020.0,84019.0,0.1190183]
[1744831424578,0.00017853,84026.0,84025.0,0.1190098]
[1744831425165,0.11918693,84026.0,84025.0,0.1190098]
[1744831425366,0.11918693,84026.0,84025.0,0.2522098]
[1744831426070,0.11918693,84026.0,84025.0,0.0669]
[1744831426273,0.11918693,84026.0,84025.0,0.007]
[1744831426663,0.11918693,84026.0,84025.0,0.00708]
[1744831427177,0.11918693,84026.0,84025.0,0.1260898]
[1744831428665,0.11918693,84026.0,84025.0,0.1946898]
[1744831429574,0.11918693,84026.0,84025.0,0.00708]
[1744831429869,0.11918693,84026.0,84025.0,0.007]
[1744831429870,0.47998693,84026.0,84025.0,0.007]
[1744831430069,0.47998693,84026.0,84025.0,0.00708]
[1744831432169,0.47998693,84026.0,84025.0,0.07088]
[1744831432671,0.47998693,84026.0,84025.0,0.1898898]
[1744831434270,0.47998693,84026.0,84025.0,0.07088]
[1744831434475,0.47998693,84026.0,84025.0,0.1898898]
[1744831436869,0.47998693,84026.0,84025.0,0.2555898]
[1744831438284,0.36097853,84026.0,84025.0,0.2555898]
[1744831438985,0.36097853,84026.0,84025.0,0.3055898]
[1744831439874,0.11918693,84026.0,84025.0,0.3055898]
[1744831441682,0.47998693,84026.0,84025.0,0.2555898]
[1744831441887,0.1190197,84018.0,84017.0,0.12413908]
[1744831442200,0.4798197,84018.0,84011.0,0.00019683]
[1744831442383,0.4798197,84018.0,83995.0,0.064]
[1744831442384,0.3608,84012.0,83995.0,0.064]
[1744831442577,0.0595267,83995.0,83992.0,0.0639]
[1744831442878,0.1190551,83993.0,83992.0,0.1929557]
[1744831443082,0.1190551,83993.0,83992.0,0.2569557]
[1744831443286,0.1892551,83993.0,83992.0,0.2570357]
[1744831444478,0.1892551,83993.0,83992.0,0.2470357]
[1744831444983,0.1892551,83993.0,83992.0,0.0679]
[1744831445186,0.1892551,83993.0,83992.0,0.00508]
[1744831445381,0.1892551,83993.0,83992.0,0.005]
[1744831445683,0.0702,83993.0,83992.0,0.1939365]
[1744831445884,0.1892551,83993.0,83992.0,0.2604365]
[1744831446585,0.0702,83993.0,83992.0,0.2604365]
[1744831447582,0.1892551,83993.0,83992.0,0.07488]
[1744831447982,0.1892551,83993.0,83992.0,0.1938565]
[1744831448185,0.1892551,83993.0,83992.0,0.07488]
[1744831448392,0.0595291,83991.0,83985.0,0.000108]
[1744831448690,0.119075,83979.0,83978.0,0.1190752]
[1744831448887,0.479875,83979.0,83978.0,0.2765752]
[1744831449287,0.479875,83979.0,83978.0,0.2766552]
[1744831449990,0.479875,83979.0,83978.0,0.06998]
[1744831450380,0.1190934,83966.0,83949.0,0.65819131]
[1744831450691,0.1190934,83966.0,83963.0,0.0001458]
[1744831450891,0.1190934,83966.0,83965.0,0.12421595]
[1744831451393,0.1190934,83966.0,83965.0,0.01112115]
[1744831451593,0.1882934,83966.0,83965.0,0.13021595]
[1744831452086,0.2531934,83966.0,83965.0,0.13621595]
[1744831452290,0.2531934,83966.0,83965.0,0.13021595]
[1744831452490,0.2531934,83966.0,83965.0,0.13421595]
[1744831452789,0.0595558,83955.0,83952.0,0.1786666]
[1744831452997,0.5394731,83953.0,83952.0,0.2295562]
[1744831453186,0.5394731,83953.0,83952.0,0.17]
[1744831453388,0.1191161,83950.0,83944.0,0.30093902]
[1744831453690,0.1191161,83950.0,83949.0,0.18111261]
[1744831454085,0.1191161,83950.0,83949.0,8e-05]
[1744831454288,0.1191246,83944.0,83943.0,0.000108]